fUSD/lending_fUSD_20250617
["ID","MTS","AMOUNT","RATE_DAILY","PERIOD"]
[366221124,1750131035479,-490.0,0.00016599,2]
[366221125,1750131035488,-490.0,0.00016599,2]
[366221126,1750131035498,-490.0,0.00016599,2]
[366221127,1750131035508,-555.41,0.00016599,2]
[366221128,1750131035519,-490.0,0.00016599,2]
[366221129,1750131035529,-523.79,0.00016599,2]
[366221130,1750131035538,-283.56542074,0.00016599,2]
[366221131,1750131035548,-490.0,0.00016599,2]
[366221132,1750131035558,-490.0,0.00016599,2]
[366221133,1750131035568,-553.38,0.00016599,2]
[366221134,1750131035578,-1765.9,0.00016599,2]
[366221135,1750131035587,-490.0,0.00016599,2]
[366221136,1750131035597,-490.0,0.00016599,2]
[366221137,1750131035606,-490.0,0.00016599,2]
[366221138,1750131035617,-488.5,0.00016599,2]
[366221139,1750131035627,-490.0,0.00016599,2]
[366221140,1750131035636,-603.57,0.00016599,2]
[366221141,1750131035646,-490.0,0.00016599,2]
[366221142,1750131035656,-490.0,0.00016599,2]
[366221143,1750131035666,-497.90098865,0.00016599,2]
[366221144,1750131035676,-490.0,0.00016599,2]
[366221145,1750131035686,-490.0,0.00016599,2]
[366221146,1750131035696,-490.0,0.00016599,2]
[366221147,1750131035706,-493.69107511,0.00016599,2]
[366221148,1750131035716,-490.0,0.00016599,2]
[366221149,1750131035726,-490.0,0.00016599,2]
[366221150,1750131035736,-601.46,0.00016599,2]
[366221151,1750131035746,-490.0,0.00016599,2]
[366221152,1750131035757,-490.0,0.00016599,2]
[366221153,1750131035767,-490.42493784,0.00016599,2]
[366221154,1750131035777,-488.5,0.00016599,2]
[366221155,1750131035787,-490.0,0.00016599,2]
[366221156,1750131035797,-490.0,0.00016599,2]
[366221157,1750131035807,-490.0,0.00016599,2]
[366221158,1750131035817,-172909.80151717,0.000166,3]
[366221159,1750131035831,-739.489561,0.000166,3]
[366221160,1750131035843,-3625.93726445,0.000166,3]
[366221161,1750131035859,-490.0,0.00016599,2]
[366221162,1750131035869,-2906.49966044,0.000166,3]
[366221163,1750131035881,-1044.5754,0.000166,3]
[366221164,1750131035893,-1215.36585993,0.000166,3]
[366221165,1750131035905,-1002.65164984,0.000166,3]
[366221166,1750131035917,-821.34705668,0.000166,3]
[366221167,1750131035950,-490.0,0.00016599,2]
[366221168,1750131035960,-3337.40151439,0.000166,3]
[366221169,1750131035972,-5946.43167112,0.000166,3]
[366221170,1750131035982,-833.87704394,0.000166,3]
[366221171,1750131035992,-150.0,0.00016622,2]
[366221172,1750131036003,-150.0,0.00016627,2]
[366221173,1750131036013,-150.0,0.0001666,2]
[366221174,1750131036023,-389.95385869,0.00016662,2]
[366221175,1750131036032,-246.98492088,0.00016662,2]
[366221176,1750131036042,-150.0,0.00016668,2]
[366221177,1750131036052,-150.0,0.00016687,2]
[366221178,1750131036062,-389.95385867,0.00016688,2]
[366221179,1750131036072,-246.98492081,0.00016688,2]
[366221180,1750131036082,-202.0,0.00016691,4]
[366221181,1750131036093,-150.0,0.00016692,2]
[366221182,1750131036103,-150.0,0.00016703,2]
[366221183,1750131036113,-150.0,0.00016703,2]
[366221184,1750131036123,-150.0,0.00016703,2]
[366221185,1750131036133,-389.95385867,0.00016715,2]
[366221186,1750131036144,-246.98492081,0.00016715,2]
[366221187,1750131036154,-150.0,0.00016725,2]
[366221188,1750131036165,-389.95385867,0.00016741,2]
[366221189,1750131036175,-246.98492081,0.00016741,2]
[366221190,1750131036185,-150.0,0.00016744,2]
[366221191,1750131036195,-150.0,0.00016758,2]
[366221192,1750131036205,-527.43006636,0.0001676,2]
[366221193,1750131036215,-206.30784861,0.00016761,2]
[366221194,1750131036225,-490.0,0.00016761,2]
[366221195,1750131036235,-490.0,0.00016761,2]
[366221196,1750131036245,-490.0,0.00016761,2]
[366221197,1750131036255,-490.0,0.00016761,2]
[366221198,1750131036265,-490.0,0.00016761,2]
[366221199,1750131036276,-490.0,0.00016761,2]
[366221200,1750131036288,-599.38137264,0.00016761,2]
[366221201,1750131036299,-524.91301623,0.00016761,2]
[366221202,1750131036309,-346.47072848,0.00016761,2]
[366221203,1750131036345,-143.52927152,0.00016761,2]
[366221204,1750131036357,-495.79565854,0.00016761,2]
[366221205,1750131036369,-490.0,0.00016761,2]
[366221206,1750131036379,-95.67506993,0.00016761,2]
[366221207,1750131038310,-490.0,0.00016599,2]
[366221208,1750131038321,-490.0,0.00016599,2]
[366221209,1750131038331,-88.21900387,0.00016599,2]
[366221210,1750131038368,-401.78099613,0.00016599,2]
[366221211,1750131038378,-833.87704394,0.00016759,2]
[366221212,1750131038388,-394.32493007,0.00016761,2]
[366221213,1750131038398,-490.0,0.00016761,2]
[366221214,1750131038409,-490.0,0.00016761,2]
[366221215,1750131038419,-490.0,0.00016761,2]
[366221216,1750131038428,-490.0,0.00016761,2]
[366221217,1750131038438,-490.0,0.00016761,2]
[366221218,1750131038449,-490.0,0.00016761,2]
[366221219,1750131038459,-490.0,0.00016761,2]
[366221220,1750131038469,-490.0,0.00016761,2]
[366221221,1750131038479,-490.0,0.00016761,2]
[366221222,1750131038490,-490.0,0.00016761,2]
[366221223,1750131038500,-490.0,0.00016761,2]
[366221224,1750131038510,-626.29,0.00016761,2]
[366221225,1750131038519,-538.4994439,0.00016761,2]
[366221226,1750131038529,-515.42,0.00016761,2]
[366221227,1750131038539,-490.0,0.00016761,2]
[366221228,1750131038549,-490.0,0.00016761,2]
[366221229,1750131038559,-490.0,0.00016761,2]
[366221230,1750131038569,-490.0,0.00016761,2]
[366221231,1750131038578,-554.2346933,0.00016761,2]
[366221232,1750131038589,-550.57,0.00016761,2]
[366221233,1750131038599,-490.0,0.00016761,2]
[366221234,1750131038609,-490.0,0.00016761,2]
[366221235,1750131038618,-490.0,0.00016761,2]
[366221236,1750131038628,-490.0,0.00016761,2]
[366221237,1750131038638,-490.0,0.00016761,2]
[366221238,1750131038647,-490.0,0.00016761,2]
[366221239,1750131038657,-490.0,0.00016761,2]
[366221240,1750131038668,-490.0,0.00016761,2]
[366221241,1750131038678,-515.39798662,0.00016761,2]
[366221242,1750131038688,-490.0,0.00016761,2]
[366221243,1750131038698,-490.0,0.00016761,2]
[366221244,1750131038708,-490.0,0.00016761,2]
[366221245,1750131038718,-490.0,0.00016761,2]
[366221246,1750131038728,-490.0,0.00016764,2]
[366221247,1750131038738,-166.1866422,0.00016764,2]
[366221248,1750131038748,-490.0,0.00016764,2]
[366221249,1750131038757,-490.0,0.00016764,2]
[366221250,1750131038767,-1063.68,0.00016764,2]
[366221251,1750131038776,-490.0,0.00016764,2]
[366221252,1750131038851,-490.0,0.00016764,2]
[366221253,1750131038861,-490.0,0.00016764,2]
[366221254,1750131038872,-490.0,0.00016764,2]
[366221255,1750131038882,-1701.44,0.00016764,2]
[366221256,1750131038893,-490.0,0.00016764,2]
[366221257,1750131038903,-490.0,0.00016764,2]
[366221258,1750131038914,-490.0,0.00016764,2]
[366221259,1750131038923,-490.0,0.00016764,2]
[366221260,1750131038933,-157.75293847,0.00016764,2]
[366221261,1750131038943,-289.97095276,0.00016764,2]
[366221262,1750131038953,-490.0,0.00016764,2]
[366221263,1750131038963,-490.0,0.00016764,2]
[366221264,1750131038973,-490.0,0.00016764,2]
[366221265,1750131038982,-490.0,0.00016764,2]
[366221266,1750131038992,-1765.9,0.00016764,2]
[366221267,1750131039002,-257.95,0.00016764,2]
[366221268,1750131039012,-228.95399418,0.00016764,2]
[366221269,1750131039025,-261.04600582,0.00016764,2]
[366221270,1750131039037,-342.17,0.00016764,2]
[366221271,1750131039047,-528.59,0.00016764,2]
[366221272,1750131039058,-490.0,0.00016764,2]
[366221273,1750131039068,-228.5,0.00016764,2]
[366221274,1750131039078,-490.0,0.00016764,2]
[366221275,1750131039087,-490.0,0.00016764,2]
[366221276,1750131039097,-490.0,0.00016764,2]
[366221277,1750131039106,-134.86030691,0.00016764,2]
[366221278,1750131039119,-355.13969309,0.00016764,2]
[366221279,1750131039129,-2000.0,0.00016765,2]
[366221280,1750131039139,-500.0,0.00016765,2]
[366221281,1750131039149,-200.0,0.00016765,2]
[366221282,1750131039160,-389.95385867,0.00016768,2]
[366221283,1750131039170,-246.98492081,0.00016768,2]
[366221284,1750131039179,-500.0,0.00016773,2]
[366221285,1750131039189,-500.0,0.00016773,2]
[366221286,1750131039198,-500.0,0.00016773,2]
[366221287,1750131039208,-500.0,0.00016773,2]
[366221288,1750131039219,-150.0,0.00016774,2]
[366221289,1750131039228,-150.0,0.00016778,2]
[366221290,1750131039238,-151.94182157,0.00016778,2]
[366221291,1750131039248,-150.0,0.00016778,2]
[366221292,1750131039258,-150.0,0.00016778,2]
[366221293,1750131039267,-150.0,0.00016778,2]
[366221294,1750131039277,-150.0,0.00016778,2]
[366221295,1750131039289,-256.62350086,0.00016778,2]
[366221296,1750131039298,-500.0,0.00016778,2]
[366221297,1750131039308,-150.0,0.00016778,2]
[366221298,1750131039317,-150.0,0.00016778,2]
[366221299,1750131039329,-151.77172755,0.00016778,2]
[366221300,1750131039338,-500.0,0.00016778,3]
[366221301,1750131039348,-150.0,0.00016778,2]
[366221302,1750131039359,-152.14976628,0.00016778,2]
[366221303,1750131039368,-150.0,0.00016778,2]
[366221304,1750131039378,-150.0,0.00016778,2]
[366221305,1750131039388,-153.10544097,0.00016778,2]
[366221306,1750131039398,-500.0,0.00016778,2]
[366221307,1750131039407,-1804.46,0.00016781,2]
[366221308,1750131039417,-150.0,0.00016786,2]
[366221309,1750131039427,-498.68979853,0.00016788,2]
[366221310,1750131039436,-9063.38632234,0.00016788,2]
[366221311,1750131039447,-10845.35714915,0.00016788,2]
[366221312,1750131039459,-534.82997,0.00016788,2]
[366221313,1750131039469,-23809.50926366,0.00016788,2]
[366221314,1750131039502,-11772.31579346,0.00016788,2]
[366221315,1750131040498,-490.0,0.00016599,2]
[366221316,1750131040508,-149.09,0.00016788,2]
[366221317,1750131040617,-490.0,0.00016599,2]
[366221318,1750131040628,-5582.78523958,0.00016788,2]
[366221319,1750131040640,-6303.14546001,0.00016788,2]
[366221320,1750131040651,-3762.96042737,0.00016788,2]
[366221321,1750131040666,-795.96438981,0.00016788,2]
[366221322,1750131040780,-463.86,0.00016764,2]
[366221323,1750131040791,-3630.51765937,0.00016788,2]
[366221324,1750131040837,-1895.57118429,0.00016788,2]
[366221325,1750131040851,-97942.0,0.00016788,2]
[366221326,1750131040863,-2690.89999997,0.00016788,2]
[366221327,1750131040874,-1460.72000014,0.00016788,2]
[366221338,1750131043616,-7113.0,0.00016581,2]
[366221339,1750131043627,-490.0,0.00016599,2]
[366221340,1750131043637,-493.99034033,0.00016599,2]
[366221341,1750131043647,-490.0,0.00016599,2]
[366221342,1750131043657,-490.0,0.00016599,2]
[366221343,1750131043668,-490.0,0.00016764,2]
[366221344,1750131043678,-4973.88975773,0.00016788,2]
[366221352,1750131046414,-490.0,0.00016599,2]
[366221353,1750131046427,-490.0,0.00016599,2]
[366221354,1750131046437,-430.1,0.00016599,2]
[366221355,1750131046450,-59.9,0.00016599,2]
[366221356,1750131046459,-206.68125291,0.00016599,2]
[366221357,1750131046476,-283.31874709,0.00016599,2]
[366221358,1750131046486,-490.0,0.00016599,2]
[366221359,1750131046496,-204.03,0.00016764,2]
[366221360,1750131046506,-490.0,0.00016764,2]
[366221361,1750131046517,-498.0,0.00016764,2]
[366221362,1750131046527,-490.0,0.00016764,2]
[366221363,1750131046536,-48111.52694616,0.00016788,2]
[366221364,1750131046546,-558.0,0.00016788,2]
[366221365,1750131046556,-2003.0,0.00016788,2]
[366221366,1750131046565,-928.0,0.00016788,2]
[366221367,1750131046575,-601.787,0.00016788,2]
[366221368,1750131046584,-1674.0,0.00016788,2]
[366221369,1750131046594,-1160.0,0.00016788,2]
[366221370,1750131046604,-155.0,0.00016788,2]
[366221371,1750131046614,-946.0,0.00016788,2]
[366221372,1750131046623,-3333.0,0.00016788,2]
[366221373,1750131046633,-150.0,0.0001679,2]
[366221374,1750131046643,-389.95385867,0.00016794,2]
[366221375,1750131046652,-246.98492081,0.00016794,2]
[366221376,1750131046662,-500.0,0.00016796,2]
[366221377,1750131046673,-490.0,0.00016797,2]
[366221378,1750131046683,-490.0,0.00016797,2]
[366221379,1750131046693,-490.0,0.00016797,2]
[366221380,1750131046703,-2716.79,0.00016797,2]
[366221381,1750131046713,-574.58,0.00016797,2]
[366221382,1750131046722,-501.59808318,0.00016797,2]
[366221383,1750131046732,-490.0,0.00016797,2]
[366221384,1750131046742,-490.0,0.00016797,2]
[366221385,1750131046751,-490.0,0.00016797,2]
[366221386,1750131046761,-490.0,0.00016797,2]
[366221387,1750131046770,-490.0,0.00016797,2]
[366221388,1750131046780,-490.0,0.00016797,2]
[366221389,1750131046789,-560.93,0.00016797,2]
[366221390,1750131046799,-490.0,0.00016797,2]
[366221391,1750131046808,-636.36,0.00016797,2]
[366221392,1750131046817,-680.95,0.00016797,2]
[366221393,1750131046827,-992.54662924,0.00016797,2]
[366221394,1750131046839,-1001.90337076,0.00016797,2]
[366221395,1750131046848,-965.23,0.00016797,2]
[366221396,1750131046858,-490.0,0.00016797,2]
[366221397,1750131046868,-1605.57,0.00016797,2]
[366221398,1750131046877,-490.0,0.00016797,2]
[366221399,1750131046887,-490.0,0.00016797,2]
[366221400,1750131046896,-490.0,0.00016797,2]
[366221401,1750131046907,-929.0,0.00016797,2]
[366221402,1750131046917,-490.0,0.00016797,2]
[366221403,1750131046927,-490.0,0.00016797,2]
[366221404,1750131046936,-490.0,0.00016797,2]
[366221405,1750131046945,-490.0,0.00016797,2]
[366221406,1750131046955,-1010.99,0.00016797,2]
[366221407,1750131046964,-490.0,0.00016797,2]
[366221408,1750131046973,-500.0,0.00016797,2]
[366221409,1750131046983,-661.32,0.00016797,2]
[366221410,1750131046992,-749.22,0.00016797,2]
[366221411,1750131047002,-869.17,0.00016797,2]
[366221412,1750131047011,-1073.92,0.00016797,2]
[366221413,1750131047020,-1510.13,0.00016797,2]
[366221414,1750131047030,-1527.66,0.00016797,2]
[366221415,1750131047039,-1121.34,0.00016797,2]
[366221416,1750131047049,-557.42,0.00016797,2]
[366221417,1750131047058,-490.0,0.00016797,2]
[366221418,1750131047068,-490.0,0.00016797,2]
[366221419,1750131047078,-568.0,0.00016797,2]
[366221420,1750131047088,-490.0,0.00016797,2]
[366221421,1750131047097,-1209.52,0.00016797,2]
[366221422,1750131047106,-490.0,0.00016797,2]
[366221423,1750131047116,-651.83,0.00016797,2]
[366221424,1750131047125,-502.58,0.00016797,2]
[366221425,1750131047134,-490.0,0.00016797,2]
[366221426,1750131047144,-490.0,0.00016797,2]
[366221427,1750131047153,-490.0,0.00016797,2]
[366221428,1750131047162,-665.05,0.00016797,2]
[366221429,1750131047173,-490.0,0.00016798,2]
[366221430,1750131047183,-500.0,0.00016798,2]
[366221431,1750131047193,-490.0,0.00016798,2]
[366221432,1750131047332,-490.0,0.00016798,2]
[366221433,1750131047343,-490.0,0.00016798,2]
[366221434,1750131047353,-490.0,0.00016798,2]
[366221435,1750131047363,-490.0,0.00016798,2]
[366221436,1750131047374,-492.46531999,0.00016798,2]
[366221437,1750131047384,-490.0,0.00016798,2]
[366221438,1750131047393,-490.0,0.00016798,2]
[366221439,1750131047403,-544.88189501,0.00016798,2]
[366221440,1750131047413,-490.0,0.00016798,2]
[366221441,1750131047424,-490.0,0.00016798,2]
[366221442,1750131047433,-490.0,0.00016798,2]
[366221443,1750131047443,-490.0,0.00016798,2]
[366221444,1750131047453,-490.0,0.00016798,2]
[366221445,1750131047462,-490.0,0.00016798,2]
[366221446,1750131047472,-490.0,0.00016798,2]
[366221447,1750131047481,-490.0,0.00016798,2]
[366221448,1750131047491,-490.0,0.00016798,2]
[366221449,1750131047500,-490.0,0.00016798,2]
[366221450,1750131047509,-490.0,0.00016798,2]
[366221451,1750131047521,-490.0,0.00016798,2]
[366221452,1750131047530,-490.0,0.00016798,2]
[366221453,1750131047540,-491.33350565,0.00016798,2]
[366221454,1750131047549,-490.0,0.00016798,2]
[366221455,1750131047559,-490.0,0.00016798,2]
[366221456,1750131047568,-490.0,0.00016798,2]
[366221457,1750131047577,-490.0,0.00016798,2]
[366221458,1750131047587,-490.0,0.00016798,2]
[366221459,1750131047597,-490.0,0.00016798,2]
[366221460,1750131047606,-490.0,0.00016798,2]
[366221461,1750131047616,-490.0,0.00016798,2]
[366221462,1750131047625,-490.0,0.00016798,2]
[366221463,1750131047634,-490.0,0.00016798,2]
[366221464,1750131047643,-350.0,0.00016798,2]
[366221465,1750131047653,-490.0,0.00016798,2]
[366221466,1750131047662,-490.0,0.00016798,2]
[366221467,1750131047672,-490.0,0.00016798,2]
[366221468,1750131047682,-490.0,0.00016798,2]
[366221469,1750131047692,-490.0,0.00016798,2]
[366221470,1750131047702,-490.0,0.00016798,2]
[366221471,1750131047711,-490.0,0.00016798,2]
[366221472,1750131047720,-218.17926442,0.00016798,2]
[366221473,1750131047730,-490.0,0.00016798,2]
[366221474,1750131047739,-490.0,0.00016798,2]
[366221475,1750131047749,-490.0,0.00016798,2]
[366221476,1750131047758,-490.0,0.00016798,2]
[366221477,1750131047768,-491.09226897,0.00016798,2]
[366221478,1750131047778,-490.0,0.00016798,2]
[366221479,1750131047789,-490.0,0.00016798,2]
[366221480,1750131047798,-490.0,0.00016798,2]
[366221481,1750131047807,-490.0,0.00016798,2]
[366221482,1750131047817,-490.0,0.00016798,2]
[366221483,1750131047826,-490.0,0.00016798,2]
[366221484,1750131047837,-548.02,0.00016798,2]
[366221485,1750131047846,-490.0,0.00016798,2]
[366221486,1750131047856,-729.66,0.00016798,2]
[366221487,1750131047867,-490.0,0.00016798,2]
[366221488,1750131047877,-490.0,0.00016798,2]
[366221489,1750131047886,-292.57194305,0.00016798,2]
[366221490,1750131047895,-490.0,0.00016798,2]
[366221491,1750131047905,-490.0,0.00016798,2]
[366221492,1750131047915,-494.6,0.00016798,2]
[366221493,1750131047925,-490.0,0.00016798,2]
[366221494,1750131047934,-513.61,0.00016798,2]
[366221495,1750131047943,-490.0,0.00016798,2]
[366221496,1750131047953,-490.0,0.00016798,2]
[366221497,1750131047964,-490.92646497,0.00016798,2]
[366221498,1750131047973,-493.6607237,0.00016798,2]
[366221499,1750131047983,-490.0,0.00016798,2]
[366221500,1750131047992,-490.0,0.00016798,2]
[366221501,1750131048002,-490.47688565,0.00016798,2]
[366221502,1750131048011,-490.0,0.00016798,2]
[366221503,1750131048020,-490.0,0.00016798,2]
[366221504,1750131048030,-490.0,0.00016798,2]
[366221505,1750131048039,-490.0,0.00016798,2]
[366221506,1750131048049,-490.0,0.00016798,2]
[366221507,1750131048059,-271.18247596,0.00016798,2]
[366221508,1750131048068,-490.0,0.00016798,2]
[366221509,1750131048079,-490.0,0.00016798,2]
[366221510,1750131048088,-490.0,0.00016798,2]
[366221511,1750131048099,-490.0,0.00016798,2]
[366221512,1750131048108,-490.0,0.00016798,2]
[366221513,1750131048119,-490.0,0.00016798,2]
[366221514,1750131048129,-490.0,0.00016798,2]
[366221515,1750131048139,-490.0,0.00016798,2]
[366221516,1750131048149,-565.2,0.00016798,2]
[366221517,1750131048159,-490.0,0.00016798,2]
[366221518,1750131048169,-490.0,0.00016798,2]
[366221519,1750131048179,-490.0,0.00016798,2]
[366221520,1750131048190,-490.0,0.00016798,2]
[366221521,1750131048200,-490.0,0.00016798,2]
[366221522,1750131048210,-490.0,0.00016798,2]
[366221523,1750131048220,-490.0,0.00016798,2]
[366221524,1750131048230,-490.0,0.00016798,2]
[366221525,1750131048240,-490.0,0.00016798,2]
[366221526,1750131048250,-380.0,0.00016798,2]
[366221527,1750131048260,-490.0,0.00016798,2]
[366221528,1750131048270,-494.49554788,0.00016798,2]
[366221529,1750131048282,-490.0,0.00016798,2]
[366221530,1750131048293,-490.0,0.00016798,2]
[366221531,1750131048303,-490.0,0.00016798,2]
[366221532,1750131048313,-490.0,0.00016798,2]
[366221533,1750131048323,-490.0,0.00016798,2]
[366221534,1750131048333,-490.0,0.00016798,2]
[366221535,1750131048344,-490.0,0.00016798,2]
[366221536,1750131048355,-492.43572568,0.00016798,2]
[366221537,1750131048365,-490.0,0.00016798,2]
[366221538,1750131048376,-490.0,0.00016798,2]
[366221539,1750131048386,-572.82051183,0.00016798,2]
[366221540,1750131048396,-168.3973932,0.00016798,2]
[366221541,1750131048407,-490.0,0.00016798,2]
[366221542,1750131048419,-419.26901705,0.00016798,2]
[366221543,1750131048430,-490.0,0.00016798,2]
[366221544,1750131048440,-490.0,0.00016798,2]
[366221545,1750131048450,-490.0,0.00016798,2]
[366221546,1750131048460,-490.0,0.00016798,2]
[366221547,1750131048471,-490.0,0.00016798,2]
[366221548,1750131048481,-490.0,0.00016798,2]
[366221549,1750131048491,-611.1,0.00016798,2]
[366221550,1750131048502,-490.0,0.00016798,2]
[366221551,1750131048513,-490.0,0.00016798,2]
[366221552,1750131048523,-490.0,0.00016798,2]
[366221553,1750131048533,-490.0,0.00016798,2]
[366221554,1750131048544,-383.85672942,0.00016798,2]
[366221555,1750131048554,-490.0,0.00016798,2]
[366221556,1750131048566,-490.0,0.00016798,2]
[366221557,1750131048576,-490.0,0.00016798,2]
[366221558,1750131048586,-490.0,0.00016798,2]
[366221559,1750131048597,-490.0,0.00016798,2]
[366221560,1750131048607,-588.05784502,0.00016798,2]
[366221561,1750131048617,-490.0,0.00016798,2]
[366221562,1750131048628,-490.0,0.00016798,2]
[366221563,1750131048638,-371.79547821,0.00016798,2]
[366221564,1750131048652,-490.0,0.00016798,2]
[366221565,1750131048662,-490.0,0.00016798,2]
[366221566,1750131048672,-490.0,0.00016798,2]
[366221567,1750131048683,-494.82839479,0.00016798,2]
[366221568,1750131048693,-490.0,0.00016798,2]
[366221569,1750131048703,-490.0,0.00016798,2]
[366221570,1750131048713,-494.53121574,0.00016798,2]
[366221571,1750131048724,-611.92,0.00016798,2]
[366221572,1750131048734,-330.17198582,0.00016798,2]
[366221573,1750131048744,-490.0,0.00016798,2]
[366221574,1750131048755,-490.0,0.00016798,2]
[366221575,1750131048765,-490.0,0.00016798,2]
[366221576,1750131048776,-490.0,0.00016798,2]
[366221577,1750131048787,-490.63652218,0.00016798,2]
[366221578,1750131048797,-490.0,0.00016798,2]
[366221579,1750131048807,-490.0,0.00016798,2]
[366221580,1750131048817,-490.0,0.00016798,2]
[366221581,1750131048827,-490.0,0.00016798,2]
[366221582,1750131048838,-229.02672491,0.00016798,2]
[366221583,1750131048847,-490.0,0.00016798,2]
[366221584,1750131048857,-490.0,0.00016798,2]
[366221585,1750131048867,-490.0,0.00016798,2]
[366221586,1750131048877,-490.0,0.00016798,2]
[366221587,1750131048887,-490.0,0.00016798,2]
[366221588,1750131048898,-490.0,0.00016798,2]
[366221589,1750131048908,-490.0,0.00016798,2]
[366221590,1750131048919,-490.0,0.00016798,2]
[366221591,1750131048930,-490.0,0.00016798,2]
[366221592,1750131048940,-490.0,0.00016798,2]
[366221593,1750131048950,-490.0,0.00016798,2]
[366221594,1750131048960,-490.0,0.00016798,2]
[366221595,1750131048970,-493.0637632,0.00016798,2]
[366221596,1750131048981,-490.0,0.00016798,2]
[366221597,1750131048990,-490.0,0.00016798,2]
[366221598,1750131049000,-490.0,0.00016798,2]
[366221599,1750131049011,-490.0,0.00016798,2]
[366221600,1750131049021,-490.0,0.00016798,2]
[366221601,1750131049032,-490.0,0.00016798,2]
[366221602,1750131049042,-490.0,0.00016798,2]
[366221603,1750131049051,-490.0,0.00016798,2]
[366221604,1750131049061,-492.17266149,0.00016798,2]
[366221605,1750131049071,-490.0,0.00016798,2]
[366221606,1750131049082,-490.0,0.00016798,2]
[366221607,1750131049091,-490.0,0.00016798,2]
[366221608,1750131049101,-485.04183862,0.00016798,2]
[366221609,1750131049112,-490.0,0.00016798,2]
[366221610,1750131049122,-369.02548627,0.00016798,2]
[366221611,1750131049132,-340.27428183,0.00016798,2]
[366221612,1750131049142,-490.0,0.00016798,2]
[366221613,1750131049152,-490.0,0.00016798,2]
[366221614,1750131049162,-490.0,0.00016798,2]
[366221615,1750131049175,-490.0,0.00016798,2]
[366221616,1750131049186,-490.0,0.00016798,2]
[366221617,1750131049197,-500.0,0.00016798,2]
[366221618,1750131049208,-490.0,0.00016798,2]
[366221619,1750131049218,-231.06578642,0.00016798,2]
[366221620,1750131049228,-490.0,0.00016798,2]
[366221621,1750131049238,-490.0,0.00016798,2]
[366221622,1750131049248,-490.0,0.00016798,2]
[366221623,1750131049258,-490.0,0.00016798,2]
[366221624,1750131049268,-490.0,0.00016798,2]
[366221625,1750131049280,-490.0,0.00016798,2]
[366221626,1750131049294,-496.19089917,0.00016798,2]
[366221627,1750131049304,-490.0,0.00016798,2]
[366221628,1750131049314,-492.36563076,0.00016798,2]
[366221629,1750131049325,-490.0,0.00016798,2]
[366221630,1750131049335,-470.0,0.00016798,2]
[366221631,1750131049346,-300.24423436,0.00016798,2]
[366221632,1750131049356,-490.0,0.00016798,2]
[366221633,1750131049367,-490.0,0.00016798,2]
[366221634,1750131049378,-494.60347242,0.00016798,2]
[366221635,1750131049389,-490.0,0.00016798,2]
[366221636,1750131049399,-490.0,0.00016798,2]
[366221637,1750131049409,-490.0,0.00016798,2]
[366221638,1750131049420,-490.0,0.00016798,2]
[366221639,1750131049430,-490.0,0.00016798,2]
[366221640,1750131049440,-490.0,0.00016798,2]